bitfinex/quotes_ETHUSD_20241022
["timestamp","ask_amount","ask_price","bid_price","bid_amount"]
[1729617171216,3.87631545,2613.5,2613.1,3.82677]
[1729617171523,0.05001545,2613.5,2613.2,3.82671]
[1729617171996,3.87630545,2613.5,2613.0,4.64931]
[1729617172200,3.87630545,2613.5,2613.0,7.063241]
[1729617172424,3.87630545,2613.5,2613.1,3.82681]
[1729617174833,3.87630545,2613.5,2613.2,3.8267]
[1729617175026,3.87630545,2613.5,2613.1,3.82681]
[1729617175714,3.87630545,2613.5,2613.1,7.65363]
[1729617176742,0.05001545,2613.5,2613.0,0.8223]
[1729617177040,3.8265,2613.4,2613.0,3.82695]
[1729617177442,3.87646757,2613.4,2613.0,3.82695]
[1729617178184,3.82667,2613.3,2612.8,4.61877]
[1729617178529,0.04970677,2613.2,2612.9,7.65409]
[1729617178725,3.99761,2613.4,2613.0,3.82699]
[1729617178938,0.04796442,2613.1,2613.0,3.82699]
[1729617179145,4.42535603,2613.5,2613.0,4.671552]
[1729617179444,4.42535603,2613.5,2613.1,3.82674]
[1729617179601,3.82659,2613.3,2613.0,3.82699]
[1729617179798,0.59902603,2613.5,2613.0,3.82699]
[1729617179999,3.82646,2613.4,2613.0,3.82699]
[1729617180205,3.82646,2613.4,2613.0,3.82693]
[1729617181030,3.82646,2613.4,2613.1,3.82686]
[1729617181232,4.42532603,2613.5,2613.1,3.82686]
[1729617181953,0.59902603,2613.5,2613.2,3.82661]
[1729617182273,0.59902603,2613.5,2613.3,3.82652]
[1729617182406,3.99713,2613.7,2613.3,5.02581548]
[1729617182607,3.82614,2613.6,2613.3,1.19929548]
[1729617182842,3.82614,2613.6,2613.3,5.02586548]
[1729617183032,3.82614,2613.6,2613.3,3.82657]
[1729617183484,3.82629,2613.5,2613.2,1.19929548]
[1729617183580,3.82629,2613.5,2613.3,1.19929548]
[1729617184041,3.82629,2613.5,2613.2,1.19929548]
[1729617185463,3.82629,2613.5,2613.1,5.42583065]
[1729617185464,3.82629,2613.5,2613.3,1.19929548]
[1729617185685,3.82629,2613.5,2613.2,1.19929548]
[1729617186031,3.82629,2613.5,2613.3,1.19929548]
[1729617186266,3.82629,2613.5,2613.2,5.02600548]
[1729617186573,3.82629,2613.5,2613.1,5.42583065]
[1729617186574,3.82629,2613.5,2613.3,1.19929548]
[1729617186730,3.82629,2613.5,2613.2,1.19929548]
[1729617186931,3.82629,2613.5,2613.3,1.19929548]
[1729617187739,3.82617,2613.6,2613.3,1.19929548]
[1729617188556,3.82617,2613.6,2613.3,5.02586548]
[1729617188819,0.04786677,2613.5,2613.3,5.02586548]
[1729617189204,3.9971,2613.7,2613.3,5.02586548]
[1729617189373,7.82323,2613.7,2613.3,5.02586548]
[1729617189567,0.0479825,2613.6,2613.3,3.82657]
[1729617190496,0.0479825,2613.6,2613.3,3.82652]
[1729617190656,0.0479825,2613.6,2613.3,4.87167261]
[1729617191373,0.0479825,2613.6,2613.5,3.82628]
[1729617191568,7.82233,2614.0,2613.6,3.82607]
[1729617191890,0.04810083,2613.6,2613.5,3.82622]
[1729617192049,3.82579,2613.9,2613.5,3.82622]
[1729617192382,3.99672,2614.0,2613.6,3.82609]
[1729617192677,0.04823127,2613.8,2613.6,3.82609]
[1729617192883,3.99672,2614.0,2613.6,4.79296055]
[1729617193047,0.0481834,2613.7,2613.6,3.82609]
[1729617193250,3.99672,2614.0,2613.6,3.82609]
[1729617193251,3.82572,2613.9,2613.6,3.82609]
[1729617193552,3.99668,2614.0,2613.6,3.82609]
[1729617193753,0.04824823,2613.8,2613.6,3.82609]
[1729617194307,3.99668,2614.0,2613.6,3.82609]
[1729617194309,3.82626,2613.6,2613.4,1.19929548]
[1729617194498,3.82657,2613.3,2613.0,1.19929548]
[1729617194699,3.82657,2613.3,2612.9,5.02638548]
[1729617194850,0.04799834,2613.2,2612.9,8.10323609]
[1729617195197,3.82657,2613.3,2612.9,3.82709]
[1729617195380,0.04795045,2613.1,2612.9,3.82709]
[1729617195547,3.82657,2613.3,2612.9,3.82709]
[1729617195754,0.0480153,2613.2,2612.9,3.82709]
[1729617195956,3.82657,2613.3,2612.9,3.82709]
[1729617196166,0.04795045,2613.1,2612.9,3.82709]
[1729617196449,3.82657,2613.3,2612.9,3.82709]
[1729617196685,0.04788559,2613.0,2612.9,3.82709]
[1729617196864,3.82657,2613.3,2612.9,3.82709]
[1729617197050,0.04786697,2613.0,2612.9,3.82709]
[1729617197306,3.82657,2613.3,2612.9,4.95494061]
[1729617197955,0.04790529,2613.2,2612.9,4.95494061]
[1729617198229,3.82657,2613.3,2612.9,4.95494061]
[1729617198719,0.04792225,2613.2,2612.9,4.95494061]
[1729617199097,3.99729,2613.6,2613.2,3.82669]
[1729617199513,0.04812581,2613.5,2613.2,3.82669]
[1729617199736,0.04812581,2613.5,2613.0,4.90772961]
[1729617199737,0.04812581,2613.5,2613.0,1.08072961]
[1729617200024,3.82635,2613.5,2613.1,3.82681]
[1729617200197,7.65276,2613.5,2613.1,3.82681]
[1729617200417,0.04806097,2613.4,2613.1,3.82681]
[1729617204544,3.87449097,2613.4,2613.1,3.82681]
[1729617204859,0.04806097,2613.4,2613.1,3.82681]
[1729617205012,0.04806097,2613.4,2613.1,4.592204]
[1729617207086,0.04806097,2613.4,2613.2,4.60816]
[1729617207235,0.04806097,2613.4,2613.3,3.82657]
[1729617207572,0.04810864,2613.4,2613.3,3.82657]
[1729617207783,3.82612,2613.7,2613.3,3.82657]
[1729617207979,0.04823831,2613.6,2613.3,4.86651495]
[1729617210669,3.82629,2613.5,2613.2,1.98079548]
[1729617210951,3.99744,2613.5,2613.2,3.82671]
[1729617211142,3.99744,2613.5,2613.0,1.19929548]
[1729617211143,0.0481606,2613.4,2613.3,3.82656]
[1729617211456,3.82605,2613.7,2613.3,3.82656]
[1729617211944,0.04829027,2613.6,2613.3,3.82656]
[1729617212937,0.04829027,2613.6,2613.5,4.63868]
[1729617213081,0.77003934,2614.1,2613.7,3.82587]
[1729617213082,4.42440934,2614.1,2613.7,3.82587]
[1729617213299,4.42440934,2614.1,2613.5,2.01169548]
[1729617213300,3.82614,2613.6,2613.5,1.19929548]
[1729617213626,3.82672,2613.2,2613.1,19.49]
[1729617213829,3.64641485,2613.6,2612.9,2.41146065]
[1729617213830,3.82664,2613.3,2612.9,5.83884548]
[1729617214132,0.04802182,2613.2,2612.9,2.01169548]
[1729617214326,0.04802182,2613.2,2612.9,1.55620261]
[1729617214484,3.59813368,2613.6,2612.9,6.58255809]
[1729617214677,3.82664,2613.3,2612.9,6.58255809]
[1729617215098,0.04802182,2613.2,2613.0,3.82699]
[1729617215314,2.84025782,2613.3,2612.9,6.58257809]
[1729617215563,0.04795697,2613.1,2612.9,6.58257809]
[1729617215732,3.82658,2613.3,2612.9,6.58257809]
[1729617215883,3.82658,2613.3,2612.9,5.38328261]
[1729617216260,0.04642109,2613.2,2612.9,5.38328261]
[1729617216548,3.82658,2613.3,2612.9,5.38328261]
[1729617216753,0.04635624,2613.1,2612.9,9.21038261]
[1729617216927,3.82658,2613.3,2612.9,10.40967809]
[1729617217107,0.03593555,2613.0,2612.9,10.40967809]
[1729617217439,0.04594619,2613.0,2612.9,6.58257809]
[1729617217742,3.82658,2613.3,2612.9,6.58257809]
[1729617217942,0.04594619,2613.0,2612.9,6.58257809]
[1729617218237,3.82658,2613.3,2612.9,6.58257809]
[1729617218420,5.51485598,2613.4,2613.0,3.82699]
[1729617218626,1.68839598,2613.4,2613.0,3.82699]
[1729617218804,3.82658,2613.3,2613.0,3.82699]
[1729617219345,3.82629,2613.5,2613.1,3.82681]
[1729617219663,3.82629,2613.5,2613.0,4.08857433]
[1729617219871,3.82629,2613.5,2613.1,3.82679]
[1729617220017,3.8259,2613.8,2613.4,3.82631]
[1729617220398,5.51420598,2613.9,2613.5,3.82619]
[1729617220500,1.68839598,2613.8,2613.5,3.82619]
[1729617221010,5.51420598,2613.9,2613.5,3.82619]
[1729617221623,1.68839598,2613.8,2613.5,3.82619]
[1729617222397,3.82581,2613.9,2613.5,3.82619]
[1729617223105,0.04628927,2613.8,2613.5,3.82619]
[1729617223339,0.04628927,2613.8,2613.5,4.81287671]
[1729617223931,0.04628927,2613.8,2613.6,0.8072]
[1729617224903,0.04628927,2613.8,2613.7,3.82599]
[1729617225103,0.04633159,2613.8,2613.7,3.82599]
[1729617225538,4.42439934,2614.1,2613.7,3.82599]
[1729617226049,3.82556,2614.0,2613.7,3.82599]
[1729617226216,4.42440934,2614.1,2613.7,3.82599]
[1729617226547,0.04643601,2614.0,2613.7,3.82599]
[1729617226744,0.04643601,2614.0,2613.7,4.79186255]
[1729617231311,4.42440934,2614.1,2613.7,4.79186255]
[1729617231466,3.82596,2613.8,2613.4,5.78106548]
[1729617231682,3.82569,2614.0,2613.2,0.7554]
[1729617231683,3.82628,2613.5,2613.2,0.7554]
[1729617232008,3.82628,2613.5,2613.0,1.59906065]
[1729617232009,3.87260118,2613.4,2613.0,4.58238]
[1729617232312,3.87260118,2613.4,2613.1,3.82683]
[1729617232313,0.04617118,2613.4,2613.1,3.82683]
[1729617232812,0.04617118,2613.4,2613.2,3.82672]
[1729617233309,3.82635,2613.5,2613.1,3.82684]
[1729617233506,0.04621817,2613.3,2613.1,3.82684]
[1729617233802,0.04617855,2613.2,2613.1,4.90013003]
[1729617234007,3.82635,2613.5,2613.1,4.90013003]
[1729617234174,0.04630824,2613.4,2613.1,3.82684]
[1729617235824,0.04630824,2613.4,2613.2,3.8267]
[1729617235973,3.826,2613.7,2613.4,0.7825]
[1729617236326,3.87264791,2613.6,2613.4,0.7825]
[1729617236516,0.04643791,2613.6,2613.5,3.82628]
[1729617236806,3.82587,2613.8,2613.4,9.27885]
[1729617237120,0.0463637,2613.7,2613.6,3.82611]
[1729617237476,3.82555,2614.0,2613.4,1.62608]
[1729617237788,3.82571,2613.9,2613.5,3.82625]
[1729617238130,0.04629148,2613.8,2613.5,3.82625]
[1729617238270,0.04629148,2613.8,2613.6,3.82606]
[1729617238702,3.82555,2614.0,2613.6,3.82606]
[1729617238912,0.04625842,2613.7,2613.6,3.82606]
[1729617239114,3.82555,2614.0,2613.6,3.82606]
[1729617239271,0.04625842,2613.7,2613.6,3.82606]
[1729617239474,3.82555,2614.0,2613.6,3.82606]
[1729617239713,0.04625842,2613.7,2613.6,3.82606]
[1729617240190,3.82555,2614.0,2613.6,3.82606]
[1729617240400,4.59544934,2614.1,2613.6,3.82606]
[1729617240401,0.04638807,2613.9,2613.7,3.82593]
[1729617240591,4.42435934,2614.1,2613.7,3.82589]
[1729617240779,0.04645289,2614.0,2613.7,3.82589]
[1729617241231,0.04645289,2614.0,2613.8,3.82579]
[1729617241920,0.04645289,2614.0,2613.7,8.034459]
[1729617242090,0.04645289,2614.0,2613.7,4.208509]
[1729617242439,3.87204289,2614.0,2613.6,3.82607]
[1729617243814,3.87204289,2614.0,2613.7,3.82598]
[1729617244654,3.87204289,2614.0,2613.6,3.8261]
[1729617244692,0.1711,2613.9,2613.5,3.82628]
[1729617245011,0.04648641,2613.8,2613.6,3.82605]
[1729617246402,1.73430079,2613.8,2613.6,3.82605]
[1729617246896,0.04648641,2613.8,2613.6,3.82605]
[1729617247094,0.04648641,2613.8,2613.7,3.82599]
[1729617248739,0.04648641,2613.8,2613.7,4.591194]
[1729617249030,1.68781438,2614.1,2613.7,4.591194]
[1729617249323,1.73454182,2614.0,2613.8,3.82584]
[1729617249979,1.73454182,2614.0,2613.4,6.29673438]
[1729617250283,1.73454182,2614.0,2613.7,3.82595]
[1729617251801,1.68781438,2613.9,2613.7,3.82595]
[1729617252287,1.68781438,2614.0,2613.7,3.82595]
[1729617252388,1.73448098,2613.9,2613.7,3.82595]
[1729617252619,1.68781438,2613.9,2613.7,3.82595]
[1729617252809,1.68781438,2614.0,2613.7,7.65186]
[1729617253005,0.0466666,2613.9,2613.7,3.82591]
[1729617253249,3.82541,2614.1,2613.8,3.82584]
[1729617253250,1.68781438,2614.0,2613.8,3.82584]
[1729617253495,0.0466666,2613.9,2613.7,3.82595]
[1729617253702,1.73448098,2613.9,2613.7,3.82595]
[1729617254118,1.73448098,2613.9,2613.8,3.82584]
[1729617254367,0.0466666,2613.9,2613.8,3.82584]
[1729617254653,3.82512,2614.3,2613.8,5.402319]
[1729617254932,1.68781438,2614.1,2613.8,4.63714]
[1729617255427,0.0451199,2614.0,2613.9,5.83980471]
[1729617255624,0.0451199,2614.0,2613.9,30.21035122]
[1729617255854,5.51195438,2615.0,2614.5,4.60941]
[1729617256054,5.51195438,2615.0,2614.6,3.82461]
[1729617256055,0.04085026,2614.9,2614.6,3.82461]
[1729617256613,5.51195438,2615.0,2614.6,3.82461]
[1729617256615,0.1711,2615.1,2614.9,1.68781438]
[1729617256618,0.03931724,2615.0,2614.8,5.51212438]
[1729617256834,5.68247438,2615.4,2614.9,3.82423]
[1729617257041,0.03949897,2615.3,2615.1,3.82385]
[1729617257202,3.82337,2615.5,2615.1,3.82385]
[1729617257399,3.99425,2615.7,2615.2,3.82377]
[1729617257400,0.03958067,2615.4,2615.2,3.82377]
[1729617257626,3.82299,2615.8,2615.4,3.82344]
[1729617257864,0.0397749,2615.7,2615.4,3.82344]
[1729617258029,7.81681,2615.9,2615.5,3.82332]
[1729617258222,0.04013744,2615.8,2615.5,3.82332]
[1729617258679,0.04013744,2615.8,2615.5,3.82336]
[1729617258797,0.04013744,2615.8,2615.6,3.82321]
[1729617259017,7.4165686,2616.2,2615.6,3.82321]
[1729617259018,3.8225,2616.1,2615.7,3.82303]
[1729617259231,0.04028383,2616.0,2615.7,3.82303]
[1729617259643,0.04028383,2616.0,2615.6,3.82321]
[1729617259644,3.86291383,2616.0,2615.6,3.82321]
[1729617260015,0.04028383,2616.0,2615.6,3.82321]
[1729617260449,3.86291383,2616.0,2615.6,3.82321]
[1729617261834,0.04028383,2616.0,2615.6,3.82314]
[1729617262162,0.04028383,2616.0,2615.4,0.7847]
[1729617262356,0.04028383,2616.0,2615.6,3.82319]
[1729617262544,3.99352,2616.2,2615.7,3.82306]
[1729617262742,0.0388639,2615.9,2615.7,3.82306]
[1729617263026,3.99352,2616.2,2615.7,3.82306]
[1729617263322,0.03879918,2615.8,2615.7,3.82306]
[1729617263326,3.99352,2616.2,2615.7,3.82306]
[1729617263617,0.03879918,2615.8,2615.7,3.82306]
[1729617263727,3.99352,2616.2,2615.7,3.82306]
[1729617263950,0.03879918,2615.8,2615.6,3.82318]
[1729617264306,0.03873444,2615.7,2615.4,4.6081]
[1729617264557,3.82286,2615.9,2615.4,8.4315]
[1729617264756,0.03866971,2615.6,2615.5,3.82335]
[1729617264961,3.82286,2615.9,2615.5,3.82335]
[1729617265256,0.03879918,2615.8,2615.5,3.82335]
[1729617266127,0.03879918,2615.8,2615.5,7.64661]
[1729617266455,3.82263,2616.0,2615.5,3.82326]
[1729617266751,0.0388978,2615.9,2615.5,3.82326]
[1729617266953,3.8616978,2615.9,2615.5,3.82326]
[1729617267971,0.0388978,2615.9,2615.6,3.8232]
[1729617271439,3.8617278,2615.9,2615.5,3.82334]
[1729617271741,3.8617478,2615.9,2615.5,3.82334]
[1729617272256,0.0388978,2615.9,2615.5,3.82326]
[1729617272732,3.8617478,2615.9,2615.5,7.64653]
[1729617272934,3.8617478,2615.9,2615.5,3.82326]
[1729617274177,3.8617478,2615.9,2615.4,4.60812]
[1729617274670,3.8617478,2615.9,2615.4,0.7847]
[1729617274970,3.8617478,2615.9,2615.5,3.82335]
[1729617276640,0.0388978,2615.9,2615.4,0.7847]
[1729617276838,3.8225,2616.1,2615.7,3.823]
[1729617277038,0.04061909,2616.0,2615.7,3.823]
[1729617277363,0.04061909,2616.0,2615.8,0.7662]
[1729617277733,0.04061909,2616.0,2615.8,4.5891]
[1729617278073,0.04057026,2615.9,2615.8,4.5891]
[1729617278245,0.04057026,2615.9,2615.8,5.43031]
[1729617278450,3.82234,2616.2,2615.8,1.60741]
[1729617278636,3.86337916,2616.1,2615.8,0.7662]
[1729617278841,0.04087916,2616.1,2615.8,4.5891]
[1729617279666,3.86336916,2616.1,2615.8,4.5891]
[1729617279970,0.04087916,2616.1,2615.8,4.58904]
[1729617280182,3.86336916,2616.1,2615.8,0.7662]
[1729617280515,0.21197916,2616.1,2615.5,0.7984]
[1729617280785,0.21197916,2616.1,2615.8,3.82286]
[1729617280934,4.03445916,2616.1,2615.8,3.82286]
[1729617281549,0.21197916,2616.1,2615.8,3.82286]
[1729617281977,4.03455916,2616.1,2615.7,7.64612]
[1729617282178,4.03455916,2616.1,2615.8,3.82292]
[1729617283082,3.86345916,2616.1,2615.8,3.82292]
[1729617283576,3.86345916,2616.1,2615.7,3.82303]
[1729617283781,3.86343916,2616.1,2615.7,3.82303]
[1729617283990,3.82256,2616.1,2615.7,3.82303]
[1729617284309,0.04081957,2616.0,2615.7,7.64604]
[1729617285187,0.04081957,2616.0,2615.7,3.82301]
[1729617286681,0.04081957,2616.0,2615.7,7.646]
[1729617286984,3.82313,2615.7,2615.4,19.49]
[1729617287164,3.82331,2615.6,2615.4,19.49]
[1729617287372,3.8639062,2615.6,2615.4,19.49]
[1729617287585,3.82336,2615.5,2615.2,0.7835]
[1729617287757,3.82336,2615.5,2615.1,3.82391]
[1729617287943,0.04031122,2615.4,2615.1,3.82391]
[1729617288186,3.82357,2615.4,2615.0,4.60751]
[1729617288382,3.8639882,2615.3,2614.8,0.7835]
[1729617288619,3.82389,2615.2,2614.8,0.7835]
[1729617288792,0.03992166,2615.1,2614.8,0.7835]
[1729617289208,0.03992166,2615.1,2614.7,23.31446]
[1729617289534,0.03992166,2615.1,2614.8,3.82435]
[1729617289692,0.03992166,2615.1,2614.8,5.50924108]
[1729617290083,3.82389,2615.2,2614.8,5.50924108]
[1729617290397,3.82389,2615.2,2614.8,3.82435]
[1729617290714,0.03979639,2615.1,2614.8,3.82435]
[1729617291098,3.82389,2615.2,2614.8,3.82435]
[1729617291422,0.03981409,2615.1,2614.8,3.82435]
[1729617291629,3.82389,2615.2,2614.8,3.82435]
[1729617291921,0.03983929,2615.1,2614.8,3.82435]
[1729617292285,7.64747,2615.3,2614.8,3.82435]
[1729617292487,0.03990404,2615.2,2614.8,3.82435]
[1729617292823,0.03987199,2615.1,2614.8,3.82435]
[1729617292997,3.82373,2615.3,2614.8,3.82435]
[1729617293182,0.03993674,2615.2,2614.9,3.82422]
[1729617293378,3.82373,2615.3,2614.9,3.82422]
[1729617293616,0.03976614,2615.2,2614.9,3.82422]
[1729617293796,3.82373,2615.3,2614.9,3.82422]
[1729617293996,0.03974921,2615.2,2614.9,3.82422]
[1729617294226,3.82373,2615.3,2614.9,3.82422]
[1729617294386,0.03974921,2615.2,2614.9,3.82422]
[1729617294593,3.82373,2615.3,2615.0,0.8093]
[1729617294899,0.03974921,2615.2,2615.1,3.82394]
[1729617295301,0.1711,2615.6,2615.1,3.82394]
[1729617295501,3.99438,2615.6,2615.1,3.82384]
[1729617295712,0.03960064,2615.5,2615.1,3.82384]
[1729617296296,0.03960064,2615.5,2614.9,3.82422]
[1729617296500,3.82358,2615.4,2615.0,3.824]
[1729617296850,0.03967908,2615.3,2615.0,3.824]
[1729617297388,0.03967908,2615.3,2615.2,4.58459]
[1729617297598,0.1711,2615.6,2615.2,4.58459]
[1729617297797,0.03980598,2615.5,2615.2,4.58459]
[1729617298120,0.03980598,2615.5,2615.4,3.8235]
[1729617298496,3.82279,2615.9,2615.5,3.82332]
[1729617298795,0.03929917,2615.8,2615.5,3.82332]
[1729617299904,3.86227917,2615.8,2615.4,3.8235]
[1729617300199,0.1711,2615.7,2615.0,0.8196]
[1729617300425,3.82358,2615.4,2615.0,4.64368]
[1729617300631,0.03900071,2615.3,2615.0,4.64368]
[1729617303558,0.03900071,2615.3,2615.1,3.82394]
[1729617304673,3.82341,2615.5,2615.1,3.82394]
[1729617304857,0.03902793,2615.4,2615.1,3.82394]
[1729617305573,3.86253793,2615.4,2615.1,3.82394]
[1729617306075,0.03902793,2615.4,2615.3,3.82365]
[1729617306248,3.82324,2615.6,2615.3,3.82365]
[1729617306454,0.03909267,2615.5,2615.3,3.82365]
[1729617306637,3.82322,2615.6,2615.2,3.82376]
[1729617306851,0.03909267,2615.5,2615.2,3.82376]
[1729617307056,0.03909267,2615.5,2615.2,7.6475]
[1729617307256,0.03909267,2615.5,2615.2,8.5788868]
[1729617307576,0.03909267,2615.5,2615.2,4.7551268]
[1729617308883,0.03909267,2615.5,2615.2,8.5788168]
[1729617309453,0.03909267,2615.5,2615.4,3.8235]
[1729617309659,7.64599,2615.8,2615.4,4.604]
[1729617309898,0.039226,2615.7,2615.4,4.604]
[1729617310192,3.8228,2615.9,2615.5,3.82328]
[1729617310392,0.03916127,2615.6,2615.5,3.82328]
[1729617310630,3.82279,2615.9,2615.5,3.82328]
[1729617310963,0.03929072,2615.8,2615.6,3.82318]
[1729617311162,0.03929072,2615.8,2615.7,3.82306]
[1729617311383,0.1711,2616.2,2615.6,0.93628377]
[1729617311589,0.03932342,2615.8,2615.7,4.60356]
[1729617311900,3.82212,2616.4,2615.9,3.82272]
[1729617311901,3.99322,2616.4,2615.9,3.82272]
[1729617312087,3.86201911,2616.3,2615.9,3.82272]
[1729617312412,3.82224,2616.3,2615.9,7.64543]
[1729617312557,0.1711,2616.4,2616.0,3.82257]
[1729617312753,0.0384269,2616.2,2616.0,3.82257]
[1729617312953,3.99317,2616.4,2616.0,3.82257]
[1729617313176,0.03827196,2616.1,2616.0,3.82257]
[1729617313378,3.99317,2616.4,2616.0,5.0138144]
[1729617313578,0.0385211,2616.1,2616.0,5.0138144]
[1729617313764,3.99317,2616.4,2616.0,5.0138144]
[1729617314169,0.03866743,2616.3,2616.0,5.0138144]
[1729617314389,0.03866743,2616.3,2616.1,3.82241]
[1729617314587,0.03866743,2616.3,2616.1,0.88362244]
[1729617314822,0.03866743,2616.3,2616.0,3.82257]
[1729617315317,0.03866743,2616.3,2616.0,3.82255]
[1729617317516,0.03866743,2616.3,2615.8,3.42446496]
[1729617317722,3.43446496,2617.2,2616.2,3.82233]
[1729617317723,0.1711,2616.6,2616.2,3.82233]
[1729617317888,3.99291,2616.6,2616.2,3.82233]
[1729617318149,0.0387665,2616.5,2616.2,3.82233]
[1729617318615,3.82195,2616.5,2616.1,4.65098]
[1729617318978,0.03886045,2616.4,2616.1,4.65098]
[1729617319486,0.03886045,2616.4,2616.1,5.8408015]
[1729617319686,0.03886045,2616.4,2616.2,3.82232]
[1729617319913,3.8218,2616.6,2616.2,3.82232]
[1729617320116,3.86076332,2616.5,2616.1,5.8407715]
[1729617322014,3.82205,2616.4,2616.1,1.1898215]
[1729617322215,0.03876477,2616.3,2616.1,3.82247]
[1729617322420,7.6439,2616.5,2616.1,3.82247]
[1729617322645,0.03882946,2616.4,2616.1,3.82247]
[1729617323936,0.03882946,2616.4,2616.1,3.82241]
[1729617324123,0.03882946,2616.4,2616.2,4.204551]
[1729617324319,3.82162,2616.7,2616.3,3.8221]
[1729617324519,3.99256,2616.8,2616.4,3.82191]
[1729617324520,0.03917115,2616.6,2616.4,3.82191]
[1729617324851,3.99256,2616.8,2616.4,3.82191]
[1729617324852,0.03788679,2616.5,2616.4,3.82191]
[1729617325051,3.99256,2616.8,2616.4,4.7035551]
[1729617325261,3.85970614,2616.7,2616.3,4.61237]
[1729617326572,0.03801614,2616.7,2616.3,8.43449]
[1729617326850,7.81413,2616.8,2616.3,4.61232]
[1729617327054,0.03808354,2616.7,2616.3,4.61232]
[1729617327230,7.81413,2616.8,2616.3,4.61232]
[1729617327427,3.85970354,2616.7,2616.3,5.4940091]
[1729617327960,3.85970354,2616.7,2616.3,1.6718891]
[1729617328451,3.85970354,2616.7,2616.3,5.4940091]
[1729617328859,3.82177,2616.6,2616.3,0.8816891]
[1729617329059,0.03810877,2616.5,2616.2,4.204451]
[1729617329420,0.03810877,2616.5,2616.2,0.382241]
[1729617330762,0.03810877,2616.5,2616.2,4.204551]
[1729617331362,0.03810877,2616.5,2616.4,3.82204]
[1729617331574,0.03810877,2616.5,2616.4,8.09151956]
[1729617331859,3.82123,2617.0,2616.4,8.09151956]
[1729617331860,3.82123,2617.0,2616.5,3.82179]
[1729617332179,0.0381541,2616.9,2616.5,7.64356]
[1729617332322,3.8594741,2616.9,2616.5,3.82177]
[1729617332520,0.0381541,2616.9,2616.7,3.82148]
[1729617332760,3.99204,2617.2,2616.8,4.64076]
[1729617332971,3.82082,2617.3,2616.9,3.8213]
[1729617333190,0.03695747,2617.1,2616.9,3.8213]
[1729617333352,3.82082,2617.3,2616.9,3.8213]
[1729617333532,0.03690973,2617.0,2616.9,3.8213]
[1729617334166,3.82082,2617.3,2616.9,3.8213]
[1729617334364,0.03696772,2617.0,2616.9,3.8213]
[1729617334662,0.03759783,2617.0,2616.9,3.8213]
[1729617334968,3.82082,2617.3,2616.9,3.8213]
[1729617335128,3.82047,2617.5,2617.1,3.82101]
[1729617335321,3.82064,2617.4,2617.0,5.0097825]
[1729617335964,7.64131,2617.4,2617.0,1.1886525]
[1729617336159,3.82064,2617.4,2617.0,1.1886525]
[1729617336679,7.64133,2617.4,2617.0,1.1886525]
[1729617336980,3.82064,2617.4,2617.0,1.1886525]
[1729617337329,3.8205,2617.5,2617.0,5.0097525]
[1729617337869,3.82073,2617.3,2617.0,1.1886525]
[1729617338072,3.82073,2617.3,2616.8,4.64073]
[1729617338236,3.99197,2617.2,2616.8,0.8193]
[1729617338451,3.82128,2617.0,2616.6,20.2884]
[1729617338662,3.82137,2616.9,2616.6,20.2884]
[1729617338969,0.03610342,2616.9,2616.7,3.8216]
[1729617339367,3.82112,2617.1,2616.7,3.8216]
[1729617339570,0.03603875,2616.8,2616.7,3.8216]
[1729617339781,3.82112,2617.1,2616.7,3.8216]
[1729617339934,0.03603875,2616.8,2616.7,3.8216]
[1729617340134,3.82112,2617.1,2616.6,4.62008]
[1729617340365,0.03603875,2616.8,2616.6,4.62007]
[1729617340568,3.8212,2617.0,2616.6,0.7984]
[1729617340870,0.03600835,2616.9,2616.6,4.62001]
[1729617341073,3.82104,2617.1,2616.6,4.62001]
[1729617341235,0.03607302,2617.0,2616.6,4.62001]
[1729617342070,3.82104,2617.1,2616.6,4.62001]
[1729617342283,3.85735302,2617.0,2616.6,0.7984]
[1729617342571,3.85735302,2617.0,2616.6,4.62008]
[1729617342874,3.82128,2617.0,2616.6,4.62008]
[1729617343479,0.03600835,2616.9,2616.6,4.62008]
[1729617343833,0.03600835,2616.9,2616.7,3.8216]
[1729617344274,3.99203,2617.2,2616.7,3.8216]
[1729617344485,0.03594367,2616.8,2616.7,3.89802556]
[1729617344640,3.82079,2617.3,2616.9,3.82128]
[1729617345064,0.03617064,2617.2,2616.9,3.82128]
[1729617345469,3.82088,2617.2,2616.8,3.8214]
[1729617345651,0.03610598,2617.1,2616.8,3.8214]
[1729617346161,3.85713598,2617.1,2616.6,5.89125196]
[1729617346669,3.82103,2617.1,2616.7,3.8216]
[1729617347688,3.99237,2617.0,2616.6,4.62008]
[1729617348219,0.03598852,2616.9,2616.6,4.62008]
[1729617348379,0.03598852,2616.9,2616.6,2.11799807]
[1729617348685,0.03598852,2616.9,2616.2,4.59792]
[1729617348686,3.82186,2616.6,2616.2,4.59792]
[1729617348839,0.03598852,2616.9,2616.0,4.59829]
[1729617348840,3.99312,2616.5,2616.0,4.59829]
[1729617349176,3.82221,2616.3,2616.0,0.7757]
[1729617349532,0.03549605,2616.2,2616.0,0.7757]
[1729617349741,3.82221,2616.3,2616.0,0.7757]
[1729617349963,3.993,2616.5,2616.0,0.7757]
[1729617349964,0.03549605,2616.2,2616.0,0.7757]
[1729617350367,3.82207,2616.4,2616.0,4.59819]
[1729617350565,0.03543134,2616.1,2616.0,4.59819]
[1729617350782,3.82207,2616.4,2616.0,4.59819]
[1729617351283,0.03556076,2616.3,2616.0,0.7757]
[1729617351579,3.99364,2616.1,2615.7,3.82303]
[1729617351786,0.1711,2616.1,2615.7,3.82303]
[1729617351988,0.03549691,2616.0,2615.7,3.82303]
[1729617352195,3.99364,2616.1,2615.7,3.82303]
[1729617352405,0.0354322,2615.9,2615.5,3.82332]
[1729617352582,3.82268,2616.0,2615.6,3.8232]
[1729617352887,3.82203,2616.5,2615.9,3.82264]
[1729617352888,3.82226,2616.3,2615.9,3.82264]
[1729617353060,7.64452,2616.3,2615.9,3.82264]
[1729617353262,3.8226,2616.1,2615.7,3.82303]
[1729617353865,0.03526344,2616.0,2615.7,3.82303]
[1729617354164,0.03526344,2616.0,2615.7,4.670258]
[1729617355483,0.03526344,2616.0,2615.7,4.670218]